bitfinex-derivatives/quotes_BTCF0:USTF0_20250911
["timestamp","ask_amount","ask_price","bid_price","bid_amount"]
[1757598978811,0.22928448,114240.0,114230.0,0.44663505]
[1757598979009,1.06112448,114240.0,114230.0,0.46038505]
[1757598979607,1.06112448,114240.0,114230.0,0.44663505]
[1757598981318,1.06112448,114240.0,114230.0,0.46038505]
[1757598982104,1.06112448,114240.0,114230.0,0.44663505]
[1757598983309,1.06092448,114240.0,114230.0,0.44663505]
[1757598983507,1.17683562,114240.0,114230.0,0.42505505]
[1757598983706,1.17683562,114240.0,114230.0,0.44667505]
[1757598984106,0.34519562,114240.0,114230.0,0.44667505]
[1757598984415,1.06088448,114240.0,114230.0,0.44667505]
[1757598984605,0.22928448,114240.0,114230.0,0.44667505]
[1757598984806,1.06080448,114240.0,114230.0,0.44667505]
[1757598986008,1.17671562,114240.0,114230.0,0.44667505]
[1757598987014,1.17659562,114240.0,114230.0,0.44667505]
[1757598989002,1.17647562,114240.0,114230.0,0.44667505]
[1757598991111,1.29238676,114240.0,114230.0,0.3628]
[1757598991315,1.90318676,114240.0,114230.0,0.002]
[1757598991513,1.90318676,114240.0,114210.0,0.42305505]
[1757598991514,0.01286,114220.0,114210.0,0.42305505]
[1757598991716,1.09883228,114220.0,114210.0,0.42305505]
[1757598992716,1.09879228,114220.0,114210.0,0.42305505]
[1757598992914,1.09879228,114220.0,114210.0,0.42405505]
[1757598993120,1.09879228,114220.0,114210.0,0.42705505]
[1757598993611,1.09979228,114220.0,114210.0,0.42405505]
[1757598993817,1.09979228,114220.0,114210.0,0.44567505]
[1757598994021,0.86797,114220.0,114210.0,0.44567505]
[1757598994216,1.09979228,114220.0,114210.0,0.44467505]
[1757598994410,0.15280114,114220.0,114210.0,0.44467505]
[1757598994610,0.85503,114220.0,114210.0,0.76125114]
[1757598995322,0.85499,114220.0,114210.0,0.76125114]
[1757598995921,0.85499,114220.0,114210.0,0.82350619]
[1757598996217,0.01764737,114230.0,114210.0,0.82350619]
[1757598996428,0.04067737,114230.0,114220.0,0.57350619]
[1757598996627,0.73927737,114230.0,114220.0,0.57350619]
[1757598996816,0.85518851,114230.0,114220.0,0.57350619]
[1757598997019,0.04067737,114230.0,114220.0,0.57350619]
[1757598997216,0.98746851,114230.0,114220.0,0.51125114]
[1757598997523,0.98946851,114230.0,114220.0,0.58906995]
[1757598998023,0.15858851,114230.0,114220.0,0.58906995]
[1757598998217,0.98946851,114230.0,114220.0,0.58906995]
[1757598999025,0.87355737,114230.0,114220.0,0.58906995]
[1757598999526,0.98934851,114230.0,114220.0,0.47315881]
[1757598999726,0.98834851,114230.0,114220.0,0.47415881]
[1757598999925,0.98734851,114230.0,114220.0,0.47415881]
[1757599000128,0.98734851,114230.0,114220.0,0.47515881]
[1757599002326,0.87143737,114230.0,114220.0,0.47515881]
[1757599002530,0.98734851,114230.0,114220.0,0.47515881]
[1757599002726,0.98734851,114230.0,114220.0,0.59106995]
[1757599002931,0.98718851,114230.0,114220.0,0.59106995]
[1757599003330,0.98718851,114230.0,114220.0,0.47515881]
[1757599003523,0.98718851,114230.0,114220.0,0.59106995]
[1757599004136,0.98718851,114230.0,114220.0,0.45959245]
[1757599004937,0.87127737,114230.0,114220.0,0.57550359]
[1757599005232,0.87127737,114230.0,114220.0,0.39734]
[1757599005536,0.87127737,114230.0,114220.0,0.51325114]
[1757599005738,0.87127737,114230.0,114220.0,0.39734]
[1757599005937,0.87127737,114230.0,114220.0,0.51325114]
[1757599006539,0.98718851,114230.0,114220.0,0.39734]
[1757599007038,0.04067737,114230.0,114220.0,0.51325114]
[1757599007241,0.87099737,114230.0,114220.0,0.39734]
[1757599007538,0.04067737,114230.0,114220.0,0.59106995]
[1757599007730,0.87095737,114230.0,114220.0,0.59106995]
[1757599008036,0.87095737,114230.0,114220.0,0.51325114]
[1757599008835,0.87095737,114230.0,114220.0,0.62251869]
[1757599010039,0.04067737,114230.0,114220.0,0.62251869]
[1757599010240,0.04067737,114230.0,114220.0,1.06628975]
[1757599010241,0.84784737,114230.0,114220.0,1.06628975]
[1757599010442,0.84784737,114230.0,114220.0,0.9570222]
[1757599010739,0.84784737,114230.0,114220.0,0.87916228]
[1757599011040,0.87087737,114230.0,114220.0,0.64734]
[1757599011434,0.87087737,114230.0,114220.0,0.87916228]
[1757599015539,0.87087737,114230.0,114220.0,0.76325114]
[1757599016546,0.87087737,114230.0,114220.0,0.87251869]
[1757599017447,0.87087737,114230.0,114220.0,0.98842983]
[1757599018150,0.04067737,114230.0,114220.0,0.98842983]
[1757599018448,0.87035737,114230.0,114220.0,0.98842983]
[1757599019747,0.87035737,114230.0,114220.0,0.64734]
[1757599020047,0.87035737,114230.0,114220.0,0.87916228]
[1757599020250,0.87035737,114230.0,114220.0,0.64734]
[1757599020452,0.87035737,114230.0,114220.0,0.9950378]
[1757599020842,0.87035737,114230.0,114220.0,0.64734]
[1757599021039,1.04420627,114230.0,114220.0,1.10430535]
[1757599021351,1.04420627,114230.0,114220.0,0.9950378]
[1757599022151,0.87015737,114230.0,114220.0,0.9950378]
[1757599022353,1.04400627,114230.0,114220.0,0.9950378]
[1757599022546,1.04400627,114230.0,114220.0,1.10430535]
[1757599022547,0.87015737,114230.0,114220.0,1.10430535]
[1757599023147,1.04400627,114230.0,114220.0,0.75660755]
[1757599023349,1.04400627,114230.0,114220.0,0.39734]
[1757599023350,1.2890289,114230.0,114220.0,0.39734]
[1757599023544,1.10251,114230.0,114220.0,0.47513008]
[1757599023744,0.02303,114230.0,114220.0,0.82282788]
[1757599023946,0.27402224,114240.0,114230.0,0.03399]
[1757599024255,0.92949334,114240.0,114230.0,0.63087885]
[1757599024943,0.10017334,114240.0,114230.0,0.63087885]
[1757599025148,0.92949334,114240.0,114230.0,0.63087885]
[1757599025349,0.89858693,114240.0,114230.0,0.82027788]
[1757599025550,0.92938489,114240.0,114230.0,0.47258008]
[1757599025751,0.92938489,114240.0,114230.0,0.64642898]
[1757599026450,0.06930693,114240.0,114230.0,1.07027788]
[1757599026763,0.02205479,114250.0,114240.0,0.03399]
[1757599027058,0.9196038,114250.0,114240.0,0.85175535]
[1757599027254,0.0904038,114250.0,114240.0,0.85175535]
[1757599029457,0.0904038,114250.0,114240.0,0.50405755]
[1757599029656,0.0904038,114250.0,114240.0,0.85175535]
[1757599030250,0.8974738,114250.0,114240.0,0.85175535]
[1757599030859,0.00012479,114250.0,114240.0,0.85175535]
[1757599031661,0.00012479,114250.0,114240.0,1.36311825]
[1757599031959,0.02193,114290.0,114280.0,0.0128]
[1757599032150,0.12544,114290.0,114280.0,1.1032878]
[1757599032555,0.12544,114290.0,114280.0,1.18094421]
[1757599032764,1.7963178,114300.0,114290.0,0.03399]
[1757599033058,2.6032278,114300.0,114290.0,0.80452865]
[1757599033258,2.6251578,114300.0,114290.0,0.5656389]
[1757599033766,2.59428,114300.0,114290.0,0.62467975]
[1757599033965,2.61921,114300.0,114290.0,0.62467975]
[1757599034155,2.61921,114300.0,114290.0,0.5626389]
[1757599034362,2.62811649,114300.0,114290.0,0.5626389]
[1757599034565,2.80196539,114300.0,114290.0,0.38879]
[1757599034767,2.87270428,114300.0,114290.0,0.62467975]
[1757599034953,2.69885538,114300.0,114290.0,0.62467975]
[1757599035157,2.87250428,114300.0,114290.0,0.5626389]
[1757599035566,2.88517428,114300.0,114290.0,0.5626389]
[1757599035761,2.87246428,114300.0,114290.0,0.5626389]
[1757599036263,2.87246428,114300.0,114290.0,0.38199]
[1757599036264,2.96128538,114300.0,114290.0,0.38199]
[1757599036459,3.30898318,114300.0,114290.0,0.38199]
[1757599038369,2.96128538,114300.0,114290.0,0.38199]
[1757599038567,3.30898318,114300.0,114290.0,0.38199]
[1757599039762,3.12218428,114300.0,114290.0,0.5686389]
[1757599040159,2.29386428,114300.0,114290.0,0.5686389]
[1757599040365,2.94825538,114300.0,114290.0,0.5686389]
[1757599040566,3.12210428,114300.0,114290.0,0.5686389]
[1757599040967,2.29386428,114300.0,114290.0,0.5686389]
[1757599041167,3.12210428,114300.0,114290.0,0.39479]
[1757599041465,3.12210428,114300.0,114290.0,0.5686389]
[1757599041868,3.29595318,114300.0,114290.0,0.5686389]
[1757599042068,2.13329538,114300.0,114290.0,0.5686389]
[1757599042368,3.30911318,114300.0,114290.0,0.5686389]
[1757599042571,3.13526428,114300.0,114290.0,0.5686389]
[1757599042772,2.96141538,114300.0,114290.0,0.5686389]
[1757599043070,3.30911318,114300.0,114290.0,0.39479]
[1757599043257,2.96141538,114300.0,114290.0,0.5686389]
[1757599043556,3.30911318,114300.0,114290.0,0.5686389]
[1757599043770,3.30911318,114300.0,114290.0,0.39479]
[1757599044069,3.30911318,114300.0,114290.0,0.5686389]
[1757599044270,2.96141538,114300.0,114290.0,0.5686389]
[1757599044673,3.30911318,114300.0,114290.0,0.5686389]
[1757599044965,3.05911318,114300.0,114290.0,0.3608]
[1757599045168,2.71141538,114300.0,114290.0,0.38362]
[1757599045367,3.05911318,114300.0,114290.0,0.38362]
[1757599045769,2.23099318,114300.0,114290.0,0.38362]
[1757599045970,3.05895318,114300.0,114290.0,0.5574689]
[1757599046171,3.05895318,114300.0,114290.0,0.38362]
[1757599046374,3.05895318,114300.0,114290.0,0.39659]
[1757599046866,1.88329538,114300.0,114290.0,0.39659]
[1757599047072,2.87174428,114300.0,114290.0,0.5704389]
[1757599047272,2.04386428,114300.0,114290.0,0.5704389]
[1757599047473,2.87170428,114300.0,114290.0,0.5704389]
[1757599047671,1.86110889,114300.0,114290.0,0.5704389]
[1757599047872,2.86279779,114300.0,114290.0,0.5704389]
[1757599049163,2.87158874,114300.0,114290.0,0.5704389]
[1757599049568,2.04374874,114300.0,114290.0,0.5704389]
[1757599049775,2.68886889,114300.0,114290.0,0.5704389]
[1757599050670,0.00504,114300.0,114290.0,1.2556096]
[1757599050867,0.02133,114340.0,114330.0,0.03579]
[1757599051067,0.04445,114340.0,114330.0,0.9312389]
[1757599051270,0.4054278,114340.0,114330.0,0.75739]
[1757599051667,0.41401917,114340.0,114330.0,0.75739]
[1757599052173,0.24317027,114340.0,114330.0,0.9312389]
[1757599052365,0.24317027,114340.0,114330.0,0.75739]
[1757599052578,0.24317027,114340.0,114330.0,0.9312389]
[1757599052766,0.24217027,114340.0,114330.0,0.9312389]
[1757599052973,0.24117027,114340.0,114330.0,0.9312389]
[1757599053180,0.05404137,114340.0,114330.0,0.9312389]
[1757599053374,0.22789027,114340.0,114330.0,0.9312389]
[1757599053773,0.24117027,114340.0,114330.0,0.75739]
[1757599053975,0.24117027,114340.0,114330.0,0.9312389]
[1757599054175,0.06732137,114340.0,114330.0,0.9312389]
[1757599054375,0.76864137,114340.0,114330.0,0.9312389]
[1757599054673,1.03221027,114340.0,114330.0,0.9312389]
[1757599054876,1.1036179,114340.0,114330.0,0.9312389]
[1757599055075,0.929769,114340.0,114330.0,0.75739]
[1757599055274,1.1036179,114340.0,114330.0,0.9312389]
[1757599056077,1.1036179,114340.0,114330.0,0.75739]
[1757599056278,1.1036179,114340.0,114330.0,0.9312389]
[1757599056476,0.929769,114340.0,114330.0,0.9312389]
[1757599056777,1.1036179,114340.0,114330.0,0.9312389]
[1757599057279,1.1036179,114340.0,114330.0,0.75739]
[1757599057482,0.929769,114340.0,114330.0,0.9312389]
[1757599057779,1.1036179,114340.0,114330.0,0.9312389]
[1757599058277,0.102329,114340.0,114330.0,0.75739]
[1757599058581,0.79360763,114340.0,114330.0,1.1050878]
[1757599058972,0.80260664,114340.0,114330.0,1.1050878]
[1757599059281,0.79360763,114340.0,114330.0,0.75739]
[1757599059576,0.07240763,114340.0,114330.0,0.75739]
[1757599059769,0.001,114340.0,114330.0,1.37528648]
[1757599060272,0.001,114340.0,114330.0,1.43715353]
[1757599060581,0.001,114340.0,114330.0,1.37528648]
[1757599060972,21.34282,114400.0,114390.0,0.02282]
[1757599061167,21.01177733,114400.0,114390.0,0.75739]
[1757599061372,20.96874,114400.0,114390.0,0.22997744]
[1757599061571,20.96874,114400.0,114390.0,1.02772854]
[1757599061766,21.79586,114400.0,114390.0,1.37542634]
[1757599062175,21.79586,114400.0,114390.0,1.12542634]
[1757599062377,20.96874,114400.0,114390.0,1.19021105]
[1757599062581,20.96974,114400.0,114390.0,1.35269356]
[1757599062880,21.80278,114400.0,114390.0,1.35269356]
[1757599063081,16.57974,114400.0,114390.0,1.35269356]
[1757599063279,16.57974,114400.0,114390.0,2.7388099]
[1757599063280,5.99247429,114400.0,114390.0,2.7388099]
[1757599063469,3.45843081,114400.0,114390.0,3.25922344]
[1757599063670,2.96433261,114400.0,114390.0,3.19735639]
[1757599063876,2.082549,114400.0,114390.0,3.25392742]
[1757599064376,2.082549,114400.0,114390.0,2.9289624]
[1757599064570,1.26182089,114400.0,114390.0,3.25392742]
[1757599064978,1.07733123,114400.0,114390.0,3.35392742]
[1757599065475,1.07733123,114400.0,114390.0,3.25692742]
[1757599065681,0.83272,114440.0,114390.0,3.25692742]
[1757599065682,0.01328,114450.0,114440.0,0.01]
[1757599065872,0.01328,114460.0,114440.0,2.48240502]
[1757599066074,0.01328,114460.0,114450.0,0.4481516]
[1757599066376,0.01328,114460.0,114450.0,1.18063411]
[1757599066881,0.01328,114460.0,114450.0,1.51805051]
[1757599067278,0.01328,114460.0,114450.0,1.52675674]
[1757599067480,0.01328,114460.0,114450.0,1.36427423]
[1757599067678,0.01328,114470.0,114460.0,0.0873409]
[1757599067878,0.01328,114470.0,114460.0,1.8959409]
[1757599068081,0.02333815,114470.0,114460.0,2.02735827]
[1757599068385,0.02774236,114470.0,114460.0,2.11472885]
[1757599068583,0.04029637,114470.0,114460.0,2.11472885]
[1757599068774,0.04029637,114470.0,114460.0,2.27721136]
[1757599068977,0.01328,114480.0,114470.0,0.0873332]
[1757599069181,0.01328,114480.0,114470.0,1.20061571]
[1757599069384,0.01328,114490.0,114480.0,0.0873256]
[1757599069581,0.01328,114490.0,114480.0,2.12224502]
[1757599069782,0.01328,114490.0,114480.0,2.12284502]
[1757599070176,0.51328,114490.0,114480.0,1.79788]
[1757599070378,0.51328,114490.0,114480.0,1.3631127]
[1757599070579,0.51328,114490.0,114480.0,1.20063019]
[1757599070779,0.51328,114490.0,114480.0,0.9508]
[1757599071080,0.51328,114490.0,114480.0,0.9548]
[1757599071277,0.5,114490.0,114480.0,1.11728251]
[1757599071578,0.43364,114490.0,114480.0,1.20463019]
[1757599071782,4e-05,114500.0,114480.0,1.4544351]
[1757599072079,0.43368,114500.0,114490.0,1.312959]
[1757599072279,0.43368,114500.0,114490.0,2.03544151]
[1757599072280,4e-05,114500.0,114490.0,2.03544151]
[1757599072786,4e-05,114500.0,114490.0,2.12278919]
[1757599072987,4e-05,114500.0,114490.0,1.96030668]
[1757599073178,4e-05,114500.0,114490.0,1.87298768]
[1757599073383,0.43368,114500.0,114490.0,1.87298768]
[1757599073585,0.43368,114500.0,114490.0,1.87498768]
[1757599073783,0.43368,114500.0,114490.0,2.04047019]
[1757599074381,0.43368,114500.0,114490.0,1.01314768]
[1757599074581,0.43368,114500.0,114490.0,2.04107019]
[1757599075096,0.43368,114500.0,114490.0,1.87858768]
[1757599075494,0.43368,114500.0,114490.0,2.04107019]
[1757599075892,0.43368,114500.0,114490.0,2.12838849]
[1757599076486,0.43368,114500.0,114490.0,1.96590598]
[1757599076695,0.43368,114500.0,114490.0,2.12838849]
[1757599076894,0.43368,114500.0,114490.0,2.04107019]
[1757599077096,0.43368,114500.0,114490.0,1.87858768]
[1757599077487,0.43368,114500.0,114490.0,2.04107019]
[1757599077894,0.46611,114500.0,114490.0,2.04107019]
[1757599078092,0.43368,114500.0,114490.0,2.04107019]
[1757599078293,0.43368,114500.0,114490.0,2.12838929]
[1757599078595,0.43368,114500.0,114490.0,1.96590678]
[1757599078988,0.43368,114500.0,114490.0,2.12838929]
[1757599079383,0.43368,114500.0,114490.0,1.96590678]
[1757599079585,0.43368,114500.0,114490.0,2.12838929]
[1757599079788,0.43368,114500.0,114490.0,1.96590678]
[1757599080092,0.43368,114500.0,114490.0,2.12838929]
[1757599080295,0.43368,114500.0,114490.0,1.96590678]
[1757599080795,0.43368,114500.0,114490.0,2.12838929]
[1757599081195,4e-05,114500.0,114490.0,2.12838929]
[1757599081399,0.19495251,114550.0,114520.0,0.0872934]
[1757599081691,0.19491251,114540.0,114530.0,0.3608]
[1757599082090,1.06907251,114540.0,114530.0,0.3608]
[1757599082290,1.06762726,114540.0,114530.0,0.3608]
[1757599082493,1.06762726,114540.0,114530.0,0.36935804]
[1757599083396,1.46883726,114540.0,114530.0,0.45666759]
[1757599083592,1.50226726,114540.0,114530.0,0.45666759]
[1757599083792,1.50226726,114540.0,114530.0,0.36935804]
[1757599084299,1.3088,114540.0,114530.0,0.45666759]
[1757599084892,1.46983726,114540.0,114530.0,0.45666759]
[1757599085098,0.03243,114520.0,114500.0,0.28796]
[1757599085301,0.39323,114510.0,114490.0,0.3608]
[1757599085591,1.26739,114510.0,114490.0,1.37839676]
[1757599085796,1.26739,114510.0,114490.0,1.31324783]
[1757599085986,1.26739,114510.0,114490.0,1.47428509]
[1757599086188,1.23496,114510.0,114490.0,1.47428509]
[1757599086386,1.23496,114510.0,114500.0,0.002]
[1757599086785,1.42842726,114510.0,114500.0,0.002]
[1757599087295,0.90947,114530.0,114500.0,1.44116969]
[1757599087296,0.3608,114530.0,114500.0,1.44116969]
[1757599087488,0.87416,114520.0,114510.0,0.87704]
[1757599087686,0.87416,114520.0,114510.0,0.94519873]
[1757599088091,1.26739,114520.0,114510.0,0.06815873]
[1757599088298,1.26739,114520.0,114500.0,0.0913121]
[1757599088494,1.06762726,114510.0,114500.0,0.004]
[1757599088695,0.90659,114510.0,114500.0,0.254]
[1757599088903,0.90659,114510.0,114500.0,0.252]
[1757599089098,0.90659,114510.0,114500.0,0.002]
[1757599090191,1.42842726,114510.0,114500.0,0.002]
[1757599090403,1.67842726,114510.0,114500.0,0.002]
[1757599090594,1.67842726,114510.0,114500.0,0.004]
[1757599090797,1.51739,114510.0,114500.0,0.004]
[1757599091194,1.67842726,114510.0,114500.0,0.004]
[1757599091399,2.55334726,114510.0,114500.0,0.004]
[1757599092205,2.39231,114510.0,114500.0,0.004]
[1757599092396,1.67842726,114510.0,114500.0,0.004]
[1757599092605,2.14235,114510.0,114500.0,0.004]
[1757599092799,1.26739,114510.0,114500.0,0.004]
[1757599093103,2.14235,114510.0,114500.0,0.004]
[1757599093298,2.14235,114510.0,114500.0,0.06526887]
[1757599093496,1.26739,114510.0,114500.0,0.06526887]
[1757599093696,2.14171,114510.0,114500.0,0.06526887]
[1757599094403,0.87416,114510.0,114500.0,1.23005933]
[1757599094597,0.87416,114510.0,114500.0,0.69005933]
[1757599094799,0.87416,114510.0,114500.0,1.22005933]
[1757599094998,0.03243,114520.0,114500.0,1.34902207]
[1757599095193,0.03243,114530.0,114510.0,0.60914206]
[1757599095392,0.87416,114520.0,114510.0,0.77605163]
[1757599095700,0.87416,114520.0,114510.0,0.80840961]
[1757599095900,1.18607,114530.0,114510.0,0.80840961]
[1757599096101,0.87416,114520.0,114510.0,1.33858678]
[1757599096301,0.39323,114540.0,114520.0,0.0872957]
[1757599096495,1.2354,114540.0,114530.0,0.0771068]
[1757599096807,0.3608,114540.0,114530.0,0.0771068]
[1757599097003,1.23496,114540.0,114530.0,0.0771068]
[1757599097304,0.87416,114540.0,114530.0,0.1643932]
[1757599097501,4e-05,114550.0,114530.0,2.36061361]
[1757599097703,0.0449,114570.0,114560.0,0.3608]
[1757599097903,0.19055109,114670.0,114620.0,0.0872177]
[1757599097904,0.39323,114670.0,114620.0,0.0872177]
[1757599098099,0.03243,114670.0,114620.0,0.65875667]
[1757599098408,0.19346726,114650.0,114640.0,0.3608]
[1757599098800,0.28243,114650.0,114640.0,0.3608]
[1757599099000,0.34423,114660.0,114640.0,0.3608]
[1757599099001,0.03243,114660.0,114640.0,0.3608]
[1757599099204,1.26707,114680.0,114650.0,0.3608]
[1757599099205,0.03243,114680.0,114650.0,0.3608]
[1757599099408,0.03243,114660.0,114650.0,0.40667343]
[1757599099603,0.21597726,114660.0,114650.0,0.04587343]
[1757599099803,0.03243,114650.0,114640.0,0.04587343]
[1757599100006,0.05494,114640.0,114630.0,0.04587343]
[1757599100213,0.79008875,114640.0,114630.0,0.01230438]
[1757599100507,0.89193149,114640.0,114630.0,0.37310438]
[1757599100697,0.55426726,114650.0,114630.0,0.37310438]
[1757599100900,0.03243,114650.0,114640.0,0.04587343]
[1757599101106,0.03643,114650.0,114640.0,0.3608]
[1757599101312,0.44746726,114650.0,114640.0,0.3608]
[1757599101610,0.002,114650.0,114630.0,0.56480373]
[1757599101907,0.002,114650.0,114640.0,0.56671069]
[1757599102108,0.39493,114680.0,114640.0,0.56671069]
[1757599102109,0.03413,114680.0,114640.0,0.49287703]
[1757599102411,0.03413,114680.0,114660.0,0.3608]
[1757599102615,0.03413,114680.0,114670.0,0.3608]
[1757599102904,0.06076881,114690.0,114670.0,0.3608]
[1757599103409,0.19516726,114680.0,114660.0,0.3608]
[1757599103612,0.03413,114680.0,114670.0,0.3608]
[1757599103908,0.03413,114680.0,114660.0,0.3608]
[1757599104309,0.06176881,114690.0,114670.0,0.52183726]
[1757599104611,0.06176881,114690.0,114670.0,0.59156778]
[1757599104612,0.06376881,114690.0,114670.0,0.59156778]
[1757599104810,0.02963881,114690.0,114680.0,0.60901076]
[1757599105008,0.06176881,114690.0,114680.0,0.3608]
[1757599105215,0.31076881,114690.0,114680.0,0.3588]
[1757599105412,0.02663881,114690.0,114680.0,0.52183726]
[1757599105612,0.02663881,114690.0,114680.0,0.3608]
[1757599105801,0.31076881,114690.0,114680.0,0.3608]
[1757599106001,0.31076881,114690.0,114670.0,0.16103726]
[1757599106205,0.31076881,114690.0,114670.0,0.52183726]
[1757599106406,0.03413,114680.0,114660.0,0.52183726]
[1757599106610,0.02663881,114690.0,114670.0,0.52183726]
[1757599106912,0.02663881,114690.0,114680.0,0.3608]
[1757599107102,0.02663881,114690.0,114680.0,0.16103726]
[1757599107299,0.02663881,114690.0,114680.0,0.3608]
[1757599107505,0.02663881,114690.0,114680.0,0.3628]
[1757599107710,0.02663881,114690.0,114680.0,0.6128]
[1757599108106,0.02663881,114690.0,114680.0,0.3628]
[1757599108411,0.31076881,114690.0,114680.0,0.003]
[1757599109018,0.06076881,114690.0,114680.0,0.003]
[1757599109309,0.52868607,114690.0,114680.0,0.003]
[1757599109617,0.02663881,114690.0,114680.0,0.52483726]
[1757599109916,0.02663881,114690.0,114680.0,0.86201136]
[1757599110113,0.02663881,114690.0,114680.0,0.6138]
[1757599110320,0.02663881,114690.0,114680.0,0.78726421]
[1757599110510,0.02663881,114690.0,114680.0,0.37622695]
[1757599110707,0.02663881,114690.0,114680.0,0.78726421]
[1757599111009,0.00638269,114700.0,114680.0,0.87443811]
[1757599111206,0.56858803,114740.0,114720.0,0.0871386]
[1757599111207,0.17365803,114740.0,114720.0,0.0871386]
[1757599111410,0.16205803,114740.0,114730.0,0.447936]
[1757599111607,0.19618803,114740.0,114730.0,0.37322695]
[1757599111806,0.57764041,114740.0,114730.0,0.01242695]
[1757599112007,0.82764041,114740.0,114730.0,0.01242695]
[1757599112214,0.21684041,114740.0,114730.0,0.01242695]
[1757599112521,0.18271041,114740.0,114730.0,0.37322695]
[1757599112715,0.21684041,114740.0,114730.0,0.37322695]
[1757599112913,0.46684041,114740.0,114730.0,0.01242695]
[1757599113209,0.18271041,114740.0,114730.0,0.37322695]
[1757599113412,0.18271041,114740.0,114730.0,0.71030943]
[1757599113607,0.18271041,114740.0,114730.0,0.87134669]
[1757599113811,0.18271041,114740.0,114730.0,1.56850405]
[1757599114407,0.18271041,114740.0,114730.0,1.4075668]
[1757599114607,0.18471041,114740.0,114730.0,1.1575668]
[1757599115019,0.18471041,114740.0,114730.0,1.31860406]
[1757599115220,0.18471041,114740.0,114730.0,0.97860406]
[1757599115420,0.18271041,114740.0,114730.0,0.37327414]
[1757599115716,0.18371041,114740.0,114730.0,0.5343114]
[1757599116022,0.62887767,114740.0,114730.0,0.01247414]
[1757599116517,0.98967767,114740.0,114730.0,0.01247414]
[1757599116712,1.87215767,114740.0,114730.0,0.01247414]
[1757599117018,0.21784041,114740.0,114730.0,0.01347414]
[1757599117220,0.57864041,114740.0,114730.0,0.01347414]
[1757599117418,0.95554767,114740.0,114730.0,0.01347414]
[1757599117607,0.18371041,114740.0,114730.0,0.62146876]
[1757599117814,0.18271041,114740.0,114730.0,0.37327414]
[1757599118007,0.18271041,114740.0,114730.0,0.37627414]
[1757599118416,0.18271041,114740.0,114730.0,0.46341014]
[1757599118813,0.18271041,114740.0,114730.0,0.37627414]
[1757599119624,0.21684041,114740.0,114730.0,0.37627414]
[1757599120126,0.46684041,114740.0,114730.0,0.01547414]
[1757599120324,0.62787767,114740.0,114730.0,0.01547414]
[1757599120526,0.21684041,114740.0,114730.0,0.01547414]
[1757599121024,0.46684041,114740.0,114730.0,0.01545225]
[1757599121318,0.62787767,114740.0,114730.0,0.01545225]
[1757599121520,0.98867767,114740.0,114730.0,0.01545225]
[1757599121712,0.57764041,114740.0,114730.0,0.01545225]
[1757599122019,0.21684041,114740.0,114730.0,0.62442551]
[1757599122322,0.21684041,114740.0,114730.0,0.53728951]
[1757599122323,0.18271041,114740.0,114730.0,0.53728951]
[1757599122619,0.82764041,114740.0,114730.0,0.01545225]
[1757599122826,0.98867767,114740.0,114730.0,0.01545225]
[1757599123027,0.62787767,114740.0,114730.0,0.01545225]
[1757599123615,0.46684041,114740.0,114730.0,0.01545225]
[1757599123820,0.37787767,114740.0,114730.0,0.01545225]
[1757599124014,0.21684041,114740.0,114730.0,0.17648951]
[1757599124220,0.21684041,114740.0,114730.0,0.01545225]
[1757599124514,1.50931767,114740.0,114730.0,0.01545225]
[1757599124928,0.98867767,114740.0,114730.0,0.01545225]
[1757599125428,0.98867767,114740.0,114730.0,0.00310001]
[1757599125721,2.71246767,114740.0,114690.0,0.3608]
[1757599125924,0.19516726,114700.0,114690.0,0.3608]
[1757599126519,0.03413,114690.0,114680.0,0.3608]
[1757599126933,0.05478238,114690.0,114680.0,0.3608]
[1757599127119,0.02065238,114690.0,114680.0,0.74384693]
[1757599127521,0.02065238,114690.0,114680.0,0.95489612]
[1757599127725,0.02065238,114690.0,114680.0,0.51822803]
[1757599127922,0.01755238,114690.0,114680.0,1.43770066]
[1757599128123,0.01755238,114690.0,114680.0,1.36385876]
[1757599128324,0.01755238,114690.0,114680.0,0.95489602]
[1757599128526,0.01755238,114690.0,114680.0,1.49489602]
[1757599128728,0.01755238,114690.0,114680.0,1.58230696]
[1757599128928,0.01755238,114690.0,114680.0,1.3451834]
[1757599129128,0.01755238,114690.0,114680.0,1.56710797]
[1757599129327,0.01755238,114690.0,114680.0,2.02622066]
[1757599129533,0.01755238,114690.0,114680.0,1.50622066]
[1757599130031,0.01755238,114690.0,114680.0,1.50522066]
[1757599130229,0.01755238,114690.0,114680.0,1.4262697]
[1757599130431,0.01755238,114690.0,114680.0,2.06730696]
[1757599130623,0.01755238,114690.0,114680.0,1.58730696]
[1757599130827,0.01755238,114690.0,114680.0,2.08730696]
[1757599131333,0.01755238,114690.0,114680.0,1.8501834]
[1757599131638,0.01755238,114690.0,114680.0,2.19516661]
[1757599131828,0.01755238,114690.0,114680.0,1.92642967]
[1757599132023,0.01755238,114690.0,114680.0,2.10746693]
[1757599132227,0.01755238,114690.0,114680.0,2.36841602]
[1757599132637,0.01755238,114690.0,114680.0,2.4761157]
[1757599132934,0.03539,114710.0,114690.0,0.0871655]
[1757599133137,0.03539,114710.0,114700.0,0.79787429]
[1757599133432,0.03539,114710.0,114700.0,0.95891155]
[1757599133631,0.03539,114710.0,114700.0,0.79787429]
[1757599134631,0.28539,114710.0,114700.0,0.80187429]
[1757599134837,0.28539,114710.0,114700.0,0.86296212]
[1757599134838,0.44642726,114710.0,114700.0,0.86296212]
[1757599135143,0.28539,114710.0,114700.0,0.42588783]
[1757599135535,0.28539,114710.0,114700.0,0.06508783]
[1757599135736,0.80722726,114710.0,114700.0,0.06508783]
[1757599136035,1.69190726,114710.0,114700.0,0.06508783]
[1757599136239,1.69190726,114710.0,114700.0,0.004]
[1757599136837,1.69190726,114710.0,114700.0,0.04986573]
[1757599137139,1.69190726,114710.0,114700.0,0.003]
[1757599137638,0.39619,114710.0,114700.0,0.05087453]
[1757599137843,1.44210726,114710.0,114700.0,0.04787453]
[1757599138141,1.44210726,114710.0,114700.0,0.04987356]
[1757599138342,1.69210726,114710.0,114700.0,0.04987356]
[1757599138732,0.03539,114690.0,114680.0,0.06977783]
[1757599138939,0.55722726,114690.0,114680.0,0.06977783]
[1757599139142,1.44102726,114690.0,114680.0,0.06977783]
[1757599139841,1.44102726,114690.0,114680.0,0.36949]
[1757599139842,0.03539,114690.0,114680.0,0.36949]
[1757599140027,0.28539,114690.0,114680.0,0.00869]
[1757599140233,0.03539,114670.0,114660.0,0.42188783]
[1757599140431,0.03539,114660.0,114650.0,0.06108783]
[1757599140629,0.03539,114650.0,114640.0,0.43707429]
[1757599140839,1.07958726,114650.0,114640.0,0.3608]
[1757599141036,0.91831,114650.0,114640.0,0.3608]